fUST/lending_fUST_20260304
["ID","MTS","AMOUNT","RATE_DAILY","PERIOD"]
[407599057,1772563845356,-176.977309,0.00010958,2]
[407599059,1772563845365,-1336.45,0.00010958,2]
[407599061,1772563845375,-176.977309,0.00010958,2]
[407599063,1772563845384,-176.977309,0.00010958,2]
[407599065,1772563845394,-176.977309,0.00010958,2]
[407599067,1772563845403,-4968.8,0.00010958,2]
[407599069,1772563845413,-587.17,0.00010958,2]
[407599071,1772563845422,-500.0,0.00010958,2]
[407599073,1772563845432,-500.0,0.00010958,2]
[407599075,1772563845442,-1563.78,0.00010958,2]
[407599077,1772563845451,-500.0,0.00010958,2]
[407599079,1772563845461,-305.09154423,0.00010958,2]
[407599080,1772563845473,-1447.18,0.00010958,2]
[407599081,1772563845482,-794.56,0.00010958,2]
[407599082,1772563845491,-500.0,0.00010958,2]
[407599083,1772563845500,-500.0,0.00010958,2]
[407599084,1772563845510,-500.0,0.00010958,2]
[407599085,1772563845520,-670.08,0.00010958,2]
[407599086,1772563845530,-500.0,0.00010958,2]
[407599087,1772563845539,-732.69,0.00010958,2]
[407599088,1772563845549,-1163.48,0.00010958,2]
[407599089,1772563845558,-500.0,0.00010958,2]
[407599090,1772563845567,-500.0,0.00010958,2]
[407599091,1772563845576,-500.0,0.00010958,2]
[407599092,1772563845586,-659.4,0.00010958,2]
[407599093,1772563845596,-538.37,0.00010958,2]
[407599094,1772563845606,-669.42,0.00010958,2]
[407599096,1772563845616,-500.0,0.00010958,2]
[407599098,1772563845625,-500.0,0.00010958,2]
[407599100,1772563845634,-4212.18,0.00010958,2]
[407599102,1772563845643,-1234.74,0.00010958,2]
[407599104,1772563845652,-1640.12,0.00010958,2]
[407599106,1772563845661,-809.36,0.00010958,2]
[407599108,1772563845670,-500.0,0.00010958,2]
[407599110,1772563845679,-1982.67,0.00010958,2]
[407599112,1772563845688,-500.0,0.00010958,2]
[407599114,1772563845698,-500.0,0.00010958,2]
[407599116,1772563845707,-2613.94,0.00010958,2]
[407599118,1772563845716,-512.39,0.00010958,2]
[407599120,1772563845726,-500.0,0.00010958,2]
[407599122,1772563845735,-500.0,0.00010958,2]
[407599124,1772563845744,-162.01882178,0.00010958,2]
[407599126,1772563845755,-500.0,0.00010958,2]
[407599128,1772563845764,-1025.76,0.00010958,2]
[407599129,1772563845774,-500.0,0.00010958,2]
[407599131,1772563845783,-3509.68,0.00010958,2]
[407599133,1772563845792,-500.0,0.00010958,2]
[407599135,1772563845802,-1441.56,0.00010958,2]
[407599137,1772563845811,-981.02,0.00010958,2]
[407599139,1772563845821,-2221.41,0.00010958,2]
[407599141,1772563845830,-2110.66,0.00010958,2]
[407599143,1772563845839,-500.0,0.00010958,2]
[407599145,1772563845849,-500.0,0.00010958,2]
[407599147,1772563845858,-500.0,0.00010958,2]
[407599149,1772563845868,-536.79,0.00010958,2]
[407599151,1772563845878,-665.7,0.00010958,2]
[407599154,1772563845888,-500.0,0.00010958,2]
[407599156,1772563845897,-500.0,0.00010958,2]
[407599158,1772563845906,-500.0,0.00010958,2]
[407599159,1772563845916,-1617.73,0.00010958,2]
[407599161,1772563845925,-865.02,0.00010958,2]
[407599163,1772563845935,-500.0,0.00010958,2]
[407599165,1772563845944,-500.0,0.00010958,2]
[407599168,1772563845954,-1384.06,0.00010958,2]
[407599170,1772563845966,-500.0,0.00010958,2]
[407599172,1772563845979,-614.72518964,0.00010958,2]
[407599174,1772563845988,-728.99,0.00010958,2]
[407599176,1772563845997,-500.0,0.00010958,2]
[407599178,1772563846007,-500.0,0.00010958,2]
[407599179,1772563846017,-619.35,0.00010958,2]
[407599182,1772563846027,-500.0,0.00010958,2]
[407599184,1772563846037,-500.0,0.00010958,2]
[407599186,1772563846049,-500.0,0.00010958,2]
[407599188,1772563846058,-500.0,0.00010958,2]
[407599190,1772563846067,-500.0,0.00010958,2]
[407599192,1772563846077,-6580.63,0.00010958,2]
[407599194,1772563846086,-500.0,0.00010958,2]
[407599196,1772563846095,-1616.32,0.00010958,2]
[407599198,1772563846104,-1110.32,0.00010958,2]
[407599200,1772563846114,-1524.5,0.00010958,2]
[407599202,1772563846124,-1977.73,0.00010958,2]
[407599204,1772563846133,-500.0,0.00010958,2]
[407599205,1772563846142,-1272.63,0.00010958,2]
[407599207,1772563846151,-1477.93,0.00010958,2]
[407599209,1772563846160,-944.41,0.00010958,2]
[407599211,1772563846170,-1018.62,0.00010958,2]
[407599213,1772563846179,-500.0,0.00010958,2]
[407599215,1772563846188,-1079.64,0.00010958,2]
[407599217,1772563846197,-500.0,0.00010958,2]
[407599219,1772563846207,-500.0,0.00010958,2]
[407599222,1772563846218,-500.0,0.00010958,2]
[407599224,1772563846228,-500.0,0.00010958,2]
[407599226,1772563846237,-1025.85,0.00010958,2]
[407599228,1772563846247,-500.0,0.00010958,2]
[407599230,1772563846256,-500.0,0.00010958,2]
[407599232,1772563846266,-597.90481644,0.00010958,2]
[407599233,1772563846275,-500.0,0.00010958,2]
[407599235,1772563846285,-500.0,0.00010958,2]
[407599238,1772563846295,-682.06,0.00010958,2]
[407599239,1772563846304,-860.08,0.00010958,2]
[407599242,1772563846314,-500.0,0.00010958,2]
[407599244,1772563846324,-2032.18,0.00010958,2]
[407599246,1772563846334,-500.0,0.00010958,2]
[407599248,1772563846342,-500.0,0.00010958,2]
[407599250,1772563846351,-579.83,0.00010958,2]
[407599252,1772563846360,-500.0,0.00010958,2]
[407599254,1772563846369,-663.59,0.00010958,2]
[407599256,1772563846379,-2610.92,0.00010958,2]
[407599258,1772563846387,-2050.01,0.00010958,2]
[407599260,1772563846397,-500.0,0.00010958,2]
[407599262,1772563846406,-500.0,0.00010958,2]
[407599264,1772563846415,-500.0,0.00010958,2]
[407599266,1772563846424,-4337.56,0.00010958,2]
[407599268,1772563846433,-830.74,0.00010958,2]
[407599270,1772563846442,-2868.11,0.00010958,2]
[407599271,1772563846452,-662.71,0.00010958,2]
[407599273,1772563846461,-500.0,0.00010958,2]
[407599275,1772563846471,-500.0,0.00010958,2]
[407599278,1772563846480,-500.0,0.00010958,2]
[407599279,1772563846490,-500.0,0.00010958,2]
[407599282,1772563846499,-500.0,0.00010958,2]
[407599284,1772563846508,-2027.33,0.00010958,2]
[407599286,1772563846518,-500.0,0.00010958,2]
[407599288,1772563846527,-500.0,0.00010958,2]
[407599290,1772563846537,-500.0,0.00010958,2]
[407599292,1772563846545,-671.98,0.00010958,2]
[407599294,1772563846555,-500.0,0.00010958,2]
[407599296,1772563846564,-500.0,0.00010958,2]
[407599298,1772563846573,-500.0,0.00010958,2]
[407599300,1772563846582,-1103.38,0.00010958,2]
[407599302,1772563846591,-500.0,0.00010958,2]
[407599304,1772563846601,-500.0,0.00010958,2]
[407599306,1772563846609,-500.0,0.00010958,2]
[407599308,1772563846618,-387.35532298,0.00010958,2]
[407599309,1772563846627,-3612.9,0.00010958,2]
[407599312,1772563846637,-500.0,0.00010958,2]
[407599314,1772563846646,-1080.33,0.00010958,2]
[407599316,1772563846656,-500.0,0.00010958,2]
[407599318,1772563846665,-1006.24,0.00010958,2]
[407599320,1772563846674,-503.62098526,0.00010958,2]
[407599322,1772563846683,-500.0,0.00010958,2]
[407599324,1772563846692,-500.0,0.00010958,2]
[407599349,1772563846893,-655.72,0.00010958,2]
[407599352,1772563846929,-533.78,0.00010958,2]
[407599354,1772563846939,-500.0,0.00010958,2]
[407599356,1772563846948,-500.0,0.00010958,2]
[407599358,1772563846958,-500.0,0.00010958,2]
[407599360,1772563846971,-4398.59,0.00010958,2]
[407599362,1772563846981,-4844.74,0.00010958,2]
[407599364,1772563846990,-1161.78,0.00010958,2]
[407599366,1772563846999,-247.57672368,0.00010958,2]
[407599368,1772563847009,-1792.7,0.00010958,2]
[407599370,1772563847018,-500.0,0.00010958,2]
[407599372,1772563847028,-904.72,0.00010958,2]
[407599374,1772563847038,-500.0,0.00010958,2]
[407599376,1772563847050,-4010.38,0.00010958,2]
[407599378,1772563847059,-500.0,0.00010958,2]
[407599380,1772563847069,-14448.13,0.00010958,2]
[407599382,1772563847079,-500.0,0.00010958,2]
[407599384,1772563847088,-968.96,0.00010958,2]
[407599386,1772563847097,-509.83,0.00010958,2]
[407599388,1772563847107,-500.0,0.00010958,2]
[407599390,1772563847117,-7096.09,0.00010958,2]
[407599392,1772563847127,-2197.15,0.00010958,2]
[407599394,1772563847137,-500.0,0.00010958,2]
[407599396,1772563847146,-679.58,0.00010958,2]
[407599398,1772563847156,-500.0,0.00010958,2]
[407599400,1772563847166,-1540.64,0.00010958,2]
[407599402,1772563847176,-635.75,0.00010958,2]
[407599404,1772563847186,-363.24358466,0.00010958,2]
[407599406,1772563847196,-500.0,0.00010958,2]
[407599408,1772563847206,-500.0,0.00010958,2]
[407599410,1772563847216,-8662.91,0.00010958,2]
[407599412,1772563847225,-500.0,0.00010958,2]
[407599414,1772563847235,-1129.27,0.00010958,2]
[407599416,1772563847245,-1478.63,0.00010958,2]
[407599418,1772563847255,-500.0,0.00010958,2]
[407599420,1772563847265,-500.0,0.00010958,2]
[407599422,1772563847275,-1279.77,0.00010958,2]
[407599425,1772563847285,-500.0,0.00010958,2]
[407599427,1772563847294,-500.0,0.00010958,2]
[407599429,1772563847303,-500.0,0.00010958,2]
[407599431,1772563847312,-500.0,0.00010958,2]
[407599433,1772563847322,-500.0,0.00010958,2]
[407599435,1772563847332,-500.0,0.00010958,2]
[407599436,1772563847342,-500.0,0.00010958,2]
[407599439,1772563847351,-9189.19,0.00010958,2]
[407599441,1772563847362,-500.0,0.00010958,2]
[407599443,1772563847372,-500.0,0.00010958,2]
[407599445,1772563847381,-500.0,0.00010958,2]
[407599447,1772563847391,-1016.45277587,0.00010958,2]
[407599473,1772563847643,-603.519,0.00010958,2]
[407599475,1772563847655,-2602.60822413,0.00010958,2]
[407599477,1772563847665,-1167.2,0.00010958,2]
[407599479,1772563847674,-844.91,0.00010958,2]
[407599481,1772563847684,-500.0,0.00010958,2]
[407599483,1772563847694,-1891.11,0.00010958,2]
[407599485,1772563847703,-540.75433709,0.00010958,2]
[407599518,1772563848008,-743.57259975,0.00010958,2]
[407599520,1772563848021,-1738.99624944,0.00010958,2]
[407599534,1772563848274,-3192.57681372,0.00010958,2]
[407599536,1772563848283,-500.0,0.00010958,2]
[407599537,1772563848293,-214.30843783,0.00010958,2]
[407599540,1772563848304,-285.69156217,0.00010958,2]
[407599542,1772563848313,-1485.45,0.00010958,2]
[407599544,1772563848323,-533.66,0.00010958,2]
[407599546,1772563848337,-500.0,0.00010958,2]
[407599548,1772563848347,-500.0,0.00010958,2]
[407599550,1772563848357,-500.0,0.00010958,2]
[407599553,1772563848367,-500.0,0.00010958,2]
[407599555,1772563848377,-517.0840942,0.00010958,2]
[407599557,1772563848387,-270.75354254,0.00010958,2]
[407599559,1772563848397,-2735.47,0.00010958,2]
[407599561,1772563848408,-500.0,0.00010958,2]
[407599563,1772563848417,-580.08,0.00010958,2]
[407599565,1772563848427,-500.0,0.00010958,2]
[407599567,1772563848438,-500.0,0.00010958,2]
[407599569,1772563848448,-500.0,0.00010958,2]
[407599571,1772563848460,-500.0,0.00010958,2]
[407599574,1772563848472,-2029.1,0.00010958,2]
[407599576,1772563848482,-1529.83,0.00010958,2]
[407599578,1772563848491,-1258.28,0.00010958,2]
[407599580,1772563848502,-500.0,0.00010958,2]
[407599582,1772563848512,-4538.5,0.00010958,2]
[407599584,1772563848522,-319.50255033,0.00010958,2]
[407599586,1772563848532,-500.0,0.00010958,2]
[407599588,1772563848542,-500.0,0.00010958,2]
[407599590,1772563848552,-500.0,0.00010958,2]
[407599592,1772563848563,-500.0,0.00010958,2]
[407599594,1772563848573,-1520.91,0.00010958,2]
[407599596,1772563848583,-7307.98,0.00010958,2]
[407599598,1772563848594,-11090.38,0.00010958,2]
[407599601,1772563848604,-500.0,0.00010958,2]
[407599603,1772563848614,-500.0,0.00010958,2]
[407599605,1772563848623,-500.0,0.00010958,2]
[407599607,1772563848632,-4436.36,0.00010958,2]
[407599609,1772563848642,-162.52751334,0.00010958,2]
[407599611,1772563848652,-500.0,0.00010958,2]
[407599613,1772563848662,-500.0,0.00010958,2]
[407599615,1772563848672,-10529.48,0.00010958,2]
[407599617,1772563848681,-579.31,0.00010958,2]
[407599619,1772563848691,-500.0,0.00010958,2]
[407599621,1772563848701,-500.0,0.00010958,2]
[407599623,1772563848710,-527.46,0.00010958,2]
[407599625,1772563848721,-500.0,0.00010958,2]
[407599627,1772563848730,-500.0,0.00010958,2]
[407599629,1772563848740,-1392.87,0.00010958,2]
[407599631,1772563848750,-878.18,0.00010958,2]
[407599633,1772563848760,-500.0,0.00010958,2]
[407599635,1772563848770,-500.0,0.00010958,2]
[407599637,1772563848779,-1421.94,0.00010958,2]
[407599639,1772563848789,-2989.46,0.00010958,2]
[407599642,1772563848799,-500.0,0.00010958,2]
[407599644,1772563848808,-500.0,0.00010958,2]
[407599646,1772563848818,-500.0,0.00010958,2]
[407599648,1772563848827,-4627.2,0.00010958,2]
[407599650,1772563848837,-500.0,0.00010958,2]
[407599652,1772563848846,-1145.26,0.00010958,2]
[407599654,1772563848855,-500.0,0.00010958,2]
[407599656,1772563848866,-1884.2,0.00010958,2]
[407599658,1772563848875,-749.48,0.00010958,2]
[407599660,1772563848885,-1256.19,0.00010958,2]
[407599662,1772563848895,-1146.84,0.00010958,2]
[407599664,1772563848905,-962.92,0.00010958,2]
[407599666,1772563848915,-500.0,0.00010958,2]
[407599668,1772563848925,-500.0,0.00010958,2]
[407599670,1772563848934,-500.0,0.00010958,2]
[407599672,1772563848944,-500.0,0.00010958,2]
[407599675,1772563848955,-500.0,0.00010958,2]
[407599677,1772563848967,-1749.63,0.00010958,2]
[407599679,1772563848981,-4220.14,0.00010958,2]
[407599681,1772563848991,-500.0,0.00010958,2]
[407599683,1772563849000,-16951.04,0.00010958,2]
[407599685,1772563849011,-500.0,0.00010958,2]
[407599687,1772563849021,-500.0,0.00010958,2]
[407599689,1772563849031,-1801.18,0.00010958,2]
[407599691,1772563849043,-4209.57,0.00010958,2]
[407599693,1772563849053,-500.0,0.00010958,2]
[407599695,1772563849063,-670.25,0.00010958,2]
[407599697,1772563849073,-500.0,0.00010958,2]
[407599699,1772563849082,-500.0,0.00010958,2]
[407599701,1772563849092,-1027.36,0.00010958,2]
[407599704,1772563849102,-1646.92,0.00010958,2]
[407599706,1772563849111,-500.0,0.00010958,2]
[407599707,1772563849120,-1207.45,0.00010958,2]
[407599710,1772563849131,-2973.23,0.00010958,2]
[407599712,1772563849140,-363.80920421,0.00010958,2]
[407600477,1772564373710,-2000.0,0.000112,30]
[407600478,1772564375830,-1000.0,0.000112,30]
[407600479,1772564376362,-1000.0,0.0001121,30]
[407600481,1772564377794,-2000.0,0.0001121,30]
[407600482,1772564379146,-2000.0,0.0001122,30]
[407600483,1772564382342,-1000.0,0.0001122,30]
[407600484,1772564382371,-1000.0,0.0001123,30]
[407600485,1772564384016,-2000.0,0.0001123,30]
[407600486,1772564387021,-2000.0,0.0001124,30]
[407600487,1772564394806,-1000.0,0.0001124,30]
[407600488,1772564394834,-1000.0,0.0001125,30]
[407600489,1772564398098,-2000.0,0.0001125,30]
[407600490,1772564400408,-2000.0,0.0001125,30]
[407600491,1772564443702,-887.6676716,0.00010127,2]
[407600492,1772564507073,196.59,0.000157,120]
[407600499,1772564811029,10000.0,9.502e-05,2]
[407600500,1772564850205,5010.0,9.502e-05,2]
[407600501,1772564884364,391.32,6.893e-05,2]
[407600502,1772564884542,391.32,6.893e-05,2]
[407600552,1772565032045,-578.53698373,9.827e-05,2]
[407600553,1772565032055,-558.0,9.827e-05,2]
[407600554,1772565032066,-486.65747635,9.952e-05,2]
[407600555,1772565032075,-666.86241711,0.00010127,2]
[407600568,1772565037974,-4870.71030849,0.00010127,2]
[407600569,1772565037983,-300.0,0.00010136,2]
[407600570,1772565037993,-1200.0,0.00010136,2]
[407600571,1772565038003,-491.02614057,0.00010137,2]
[407600572,1772565038012,-883.84705302,0.00010137,2]
[407600573,1772565038023,-1571.28364982,0.00010137,2]
[407600574,1772565038032,-2455.13070285,0.00010137,2]
[407600575,1772565038042,-3531.85282389,0.00010137,2]
[407600576,1772565038052,-328.47998528,0.00010137,2]
[407600577,1772565038061,-375.40569746,0.00010137,2]
[407600578,1772565038070,-585.98483088,0.00010137,2]
[407600579,1772565038080,-226.2530784,0.0001067,2]
[407600580,1772565038089,-261.20662544,0.0001067,2]
[407600581,1772565038098,-470.17192578,0.0001067,2]
[407600582,1772565038108,-835.86120139,0.0001067,2]
[407600583,1772565038117,-1304.72709405,0.0001067,2]
[407600584,1772565038128,-2284.939,0.0001068,2]
[407600585,1772565038138,-1389.0,0.0001068,2]
[407600586,1772565038147,-638.0,0.0001068,2]
[407600587,1772565038156,-730.0,0.0001068,2]
[407600588,1772565038165,-430.0,0.0001068,2]
[407600589,1772565038175,-500.0,0.00010759,2]
[407600590,1772565038184,-651.66581411,0.00010797,2]
[407600591,1772565038194,-500.0,0.00010797,2]
[407600592,1772565038203,-500.0,0.00010797,2]
[407600593,1772565038214,-500.0,0.00010797,2]
[407600594,1772565038223,-500.0,0.00010797,2]
[407600595,1772565038232,-500.0,0.00010797,2]
[407600596,1772565038242,-500.0,0.00010797,2]
[407600597,1772565038251,-366.40602359,0.00010797,2]
[407600598,1772565038260,-500.0,0.00010797,2]
[407600599,1772565038270,-500.0,0.00010797,2]
[407600600,1772565038279,-500.0,0.00010797,2]
[407600601,1772565038289,-500.0,0.00010797,2]
[407600602,1772565038298,-367.59518695,0.00010797,2]
[407600603,1772565038307,-255.0506219,0.00010797,2]
[407600604,1772565038322,-500.0,0.00010797,2]
[407600605,1772565038331,-500.0,0.00010797,2]
[407600606,1772565038341,-500.0,0.00010797,2]
[407600607,1772565038351,-500.0,0.00010797,2]
[407600608,1772565038363,-500.0,0.00010797,2]
[407600609,1772565038374,-500.0,0.00010797,2]
[407600610,1772565038385,-500.0,0.00010797,2]
[407600611,1772565038395,-500.0,0.00010797,2]
[407600612,1772565038404,-500.0,0.00010797,2]
[407600613,1772565038413,-500.0,0.00010797,2]
[407600614,1772565038423,-500.0,0.00010797,2]
[407600615,1772565038433,-500.0,0.00010797,2]
[407600616,1772565038442,-500.0,0.00010797,2]
[407600617,1772565038452,-500.0,0.00010797,2]
[407600618,1772565038461,-500.0,0.00010797,2]
[407600619,1772565038471,-500.0,0.00010797,2]
[407600620,1772565038480,-500.0,0.00010797,2]
[407600621,1772565038490,-500.0,0.00010797,2]
[407600622,1772565038499,-898.70514601,0.000108,2]
[407600623,1772565038509,-1724.98347184,0.000108,2]
[407600624,1772565038518,-248.84313946,0.00010852,2]
[407600625,1772565038528,-1957.856,0.00010944,2]
[407600626,1772565038537,-2230.315306,0.00010944,2]
[407600627,1772565038547,-250.0,0.00010951,2]
[407600628,1772565038556,-168.3888056,0.00010951,2]
[407600629,1772565038566,-174.61919141,0.00010951,2]
[407600630,1772565038575,-181.08010149,0.00010951,2]
[407600631,1772565038585,-250.0,0.00010951,2]
[407600632,1772565038594,-187.78006525,0.00010951,2]
[407600633,1772565038604,-250.0,0.00010951,2]
[407600634,1772565038614,-194.72792766,0.00010951,2]
[407600635,1772565038624,-250.0,0.00010951,2]
[407600636,1772565038633,-201.93286099,0.00010951,2]
[407600637,1772565038643,-1000.0,0.00010951,2]
[407600638,1772565038651,-250.0,0.00010951,2]
[407600639,1772565038661,-209.40437684,0.00010951,2]
[407600640,1772565038670,-1000.0,0.00010951,2]
[407600641,1772565038680,-165.43297812,0.00010951,2]
[407600642,1772565038689,-217.15233878,0.00010951,2]
[407600643,1772565038698,-190.41011606,0.00010951,2]
[407600644,1772565038707,-225.18697532,0.00010951,2]
[407600645,1772565038716,-233.51889341,0.00010951,2]
[407600646,1772565038726,-557.5788265,0.00010951,2]
[407600647,1772565038735,-242.15909246,0.00010951,2]
[407600648,1772565038745,-251.11897888,0.00010951,2]
[407600649,1772565038755,-260.4103811,0.00010951,2]
[407600650,1772565038765,-270.0455652,0.00010951,2]
[407600651,1772565038774,-280.03725112,0.00010951,2]
[407600652,1772565038785,-290.39862941,0.00010951,2]
[407600653,1772565038795,-301.1433787,0.00010951,2]
[407600654,1772565038804,-156.587,0.00010951,2]
[407600655,1772565038814,-250.0,0.00010951,2]
[407600656,1772565038824,-250.0,0.00010951,2]
[407600657,1772565038833,-250.0,0.00010951,2]
[407600658,1772565038843,-160.0,0.00010952,3]
[407600659,1772565038852,-158.215,0.00010957,2]
[407600660,1772565038862,-394.28140675,0.00010957,2]
[407600661,1772565038871,-500.0,0.00010958,2]
[407600662,1772565038882,-250.36187774,0.00010958,2]
[407600663,1772565038896,-8990.2605806,0.00010958,2]
[407600664,1772565038906,-623.97140122,0.00010958,2]
[407600665,1772565038916,-360.00000001,0.00010958,2]
[407600666,1772565038926,-500.0,0.00010958,2]
[407600667,1772565038935,-176.977309,0.00010958,2]
[407600668,1772565038945,-176.977309,0.00010958,2]
[407600669,1772565038955,-176.977309,0.00010958,2]
[407600670,1772565038964,-176.977309,0.00010958,2]
[407600671,1772565038973,-500.0,0.00010958,2]
[407600672,1772565038983,-500.0,0.00010958,2]
[407600673,1772565038992,-500.0,0.00010958,2]
[407600674,1772565039002,-500.0,0.00010958,2]
[407600675,1772565039012,-506.10790138,0.00010958,2]
[407600676,1772565039021,-500.0,0.00010958,2]
[407600677,1772565039031,-500.0,0.00010958,2]
[407600678,1772565039040,-500.0,0.00010958,2]
[407600679,1772565039049,-4103.7195075,0.00010958,2]
[407600680,1772565039059,-500.0,0.00010958,2]
[407600681,1772565039068,-500.0,0.00010958,2]
[407600682,1772565039078,-596.25697284,0.00010958,2]
[407600683,1772565039088,-1522.84,0.00010958,2]
[407600684,1772565039098,-500.0,0.00010958,2]
[407600685,1772565039108,-500.0,0.00010958,2]
[407600686,1772565039118,-500.0,0.00010958,2]
[407600687,1772565039127,-500.0,0.00010958,2]
[407600688,1772565039141,-500.0,0.00010958,2]
[407600689,1772565039151,-500.0,0.00010958,2]
[407600690,1772565039161,-879.11,0.00010958,2]
[407600691,1772565039170,-2167.08,0.00010958,2]
[407600692,1772565039179,-500.0,0.00010958,2]
[407600693,1772565039190,-884.39,0.00010958,2]
[407600694,1772565039199,-500.0,0.00010958,2]
[407600695,1772565039210,-2233.19,0.00010958,2]
[407600696,1772565039219,-500.0,0.00010958,2]
[407600697,1772565039229,-500.0,0.00010958,2]
[407600698,1772565039238,-500.0,0.00010958,2]
[407600699,1772565039247,-500.0,0.00010958,2]
[407600700,1772565039257,-500.0,0.00010958,2]
[407600701,1772565039267,-500.0,0.00010958,2]
[407600702,1772565039276,-500.0,0.00010958,2]
[407600703,1772565039287,-500.0,0.00010958,2]
[407600704,1772565039296,-500.0,0.00010958,2]
[407600705,1772565039307,-426.94959193,0.00010958,2]
[407600706,1772565039319,-500.0,0.00010958,2]
[407600707,1772565039334,-500.0,0.00010958,2]
[407600708,1772565039345,-2678.39,0.00010958,2]
[407600709,1772565039357,-777.36,0.00010958,2]
[407600710,1772565039369,-518.24,0.00010958,2]
[407600711,1772565039380,-500.0,0.00010958,2]
[407600712,1772565039398,-500.0,0.00010958,2]
[407600713,1772565039410,-500.0,0.00010958,2]
[407600714,1772565039423,-500.0,0.00010958,2]
[407600715,1772565039434,-500.0,0.00010958,2]
[407600716,1772565039448,-500.0,0.00010958,2]
[407600717,1772565039459,-500.0,0.00010958,2]
[407600718,1772565039470,-500.0,0.00010958,2]
[407600719,1772565039482,-921.99,0.00010958,2]
[407600720,1772565039493,-500.0,0.00010958,2]
[407600721,1772565039501,-500.0,0.00010958,2]
[407600722,1772565039511,-500.0,0.00010958,2]
[407600723,1772565039521,-613.71,0.00010958,2]
[407600724,1772565039532,-500.0,0.00010958,2]
[407600725,1772565039542,-976.4,0.00010958,2]
[407600726,1772565039552,-586.6783962,0.00010958,2]
[407600727,1772565039562,-500.0,0.00010958,2]
[407600728,1772565039572,-500.0,0.00010958,2]
[407600729,1772565039582,-500.0,0.00010958,2]
[407600730,1772565039594,-500.0,0.00010958,2]
[407600731,1772565039604,-1058.05,0.00010958,2]
[407600732,1772565039614,-500.0,0.00010958,2]
[407600733,1772565039624,-572.14,0.00010958,2]
[407600734,1772565039634,-561.66,0.00010958,2]
[407600735,1772565039648,-837.96,0.00010958,2]
[407600736,1772565039658,-500.0,0.00010958,2]
[407600737,1772565039668,-500.0,0.00010958,2]
[407600738,1772565039678,-500.0,0.00010958,2]
[407600739,1772565039688,-500.0,0.00010958,2]
[407600740,1772565039698,-500.0,0.00010958,2]
[407600741,1772565039708,-1311.35,0.00010958,2]
[407600742,1772565039718,-551.53258521,0.00010958,2]
[407600743,1772565039728,-966.06,0.00010958,2]
[407600744,1772565039738,-1025.51,0.00010958,2]
[407600745,1772565039748,-500.0,0.00010958,2]
[407600746,1772565039758,-1049.68,0.00010958,2]
[407600748,1772565039768,-635.85,0.00010958,2]
[407600749,1772565039778,-200.07280992,0.00010958,2]
[407600750,1772565039787,-3192.17,0.00010958,2]
[407600752,1772565039797,-1000.0,0.00010958,2]
[407600754,1772565039807,-500.0,0.00010958,2]
[407600755,1772565039816,-500.0,0.00010958,2]
[407600756,1772565039826,-500.0,0.00010958,2]
[407600757,1772565039836,-1410.02,0.00010958,2]
[407600758,1772565039845,-500.0,0.00010958,2]
[407600759,1772565039855,-500.0,0.00010958,2]
[407600760,1772565039867,-767.14,0.00010958,2]